bitfinex-derivatives/quotes_SOLF0:USTF0_20241222
["timestamp","ask_amount","ask_price","bid_price","bid_amount"]
[1734853547590,7.54003248,184.17,184.1,2.82]
[1734853547982,10.25633248,184.17,184.12,2.717]
[1734853548187,7.54003248,184.17,184.09,14.31141351]
[1734853548394,7.54003248,184.17,184.1,2.82]
[1734853548887,11.41622377,184.25,184.1,2.82]
[1734853549294,11.41622377,184.25,184.12,14.31141351]
[1734853549893,11.41622377,184.25,184.15,14.31141351]
[1734853550093,11.41622377,184.25,184.16,6.067]
[1734853550284,11.41622377,184.25,184.2,2.7159]
[1734853550488,11.41622377,184.25,184.16,6.067]
[1734853550489,11.41622377,184.25,184.21,2.82]
[1734853550689,11.41622377,184.25,184.22,2.7156]
[1734853550891,11.41622377,184.25,184.21,2.82]
[1734853551595,2.7154,184.24,184.21,2.82]
[1734853553594,11.41622377,184.25,184.2,2.82]
[1734853554294,2.7155,184.23,184.2,2.82]
[1734853554892,2.7155,184.23,184.17,4.2855]
[1734853555089,2.7155,184.23,184.18,2.82]
[1734853555497,2.82,184.51,184.21,14.31141351]
[1734853555693,31.81792994,184.43,184.27,14.31141351]
[1734853555899,31.81792994,184.43,184.28,7.9151]
[1734853556299,31.81792994,184.43,184.29,2.7144]
[1734853556502,1.6578,184.43,184.28,5.0951]
[1734853556698,2.82,184.42,184.29,2.82]
[1734853556899,14.31141351,184.41,184.28,5.0951]
[1734853557201,14.31141351,184.41,184.28,3.3799]
[1734853558002,2.7139,184.34,184.28,3.3799]
[1734853560708,2.82,184.36,184.28,3.3799]
[1734853560907,2.82,184.36,184.25,32.82]
[1734853561303,2.7142,184.32,184.25,30.0]
[1734853561606,1.7119,184.35,184.25,30.0]
[1734853562207,2.7141,184.32,184.25,30.0]
[1734853562599,2.7145,184.3,184.25,30.0]
[1734853563003,2.96,184.32,184.25,30.0]
[1734853563210,2.7149,184.27,184.25,30.0]
[1734853563409,2.96,184.32,184.25,30.0]
[1734853564304,3.3463,184.35,184.25,32.96]
[1734853564498,2.96,184.34,184.25,32.96]
[1734853565508,2.7141,184.32,184.25,35.675]
[1734853565812,2.7141,184.32,184.25,32.96]
[1734853567513,2.7141,184.32,184.26,2.715]
[1734853568403,2.7142,184.32,184.25,30.0]
[1734853568608,3.3463,184.35,184.25,30.0]
[1734853568811,6.3063,184.35,184.25,30.0]
[1734853569208,2.7143,184.31,184.25,30.0]
[1734853570512,2.7143,184.31,184.25,32.7151]
[1734853571511,2.7141,184.32,184.26,2.715]
[1734853572309,2.96,184.35,184.25,44.31141351]
[1734853572510,2.96,184.39,184.25,44.31141351]
[1734853572711,4.9331,184.4,184.28,14.31141351]
[1734853572912,2.96,184.39,184.29,2.96]
[1734853573804,1.6053,184.4,184.29,2.96]
[1734853574009,1.6053,184.4,184.35,30.0]
[1734853575312,78.96497895,184.41,184.35,30.0]
[1734853575714,2.7132,184.39,184.35,30.0]
[1734853577314,2.7129,184.41,184.35,32.7137]
[1734853578318,2.7126,184.43,184.37,2.7134]
[1734853579924,2.7126,184.43,184.37,5.6734]
[1734853580421,2.7121,184.46,184.4,2.7128]
[1734853582317,2.96,184.49,184.38,6.1651]
[1734853582318,2.7124,184.44,184.38,6.1651]
[1734853584630,2.96,184.48,184.45,27.2876]
[1734853585326,2.7121,184.46,184.45,27.2876]
[1734853588624,1.6405,184.55,184.45,27.2876]
[1734853588829,15.28364777,184.54,184.45,27.2876]
[1734853589034,2.96,184.53,184.45,27.2876]
[1734853589233,2.7113,184.52,184.46,2.96]
[1734853590232,1.6405,184.55,184.45,27.2876]
[1734853590533,2.7115,184.5,184.45,32.9598]
[1734853593135,2.7115,184.5,184.45,29.9998]
[1734853593428,2.7115,184.5,184.45,32.9198]
[1734853593734,6.28303041,184.56,184.55,24.5761]
[1734853594428,8.95363041,184.56,184.55,24.5761]
[1734853595734,6.03363041,184.56,184.55,24.5761]
[1734853596337,7.00553468,184.56,184.55,24.5761]
[1734853596532,6.03363041,184.56,184.55,24.5761]
[1734853596938,2.7106,184.56,184.55,24.5761]
[1734853599330,2.92,184.6,184.55,24.5761]
[1734853599535,2.7106,184.57,184.55,24.5761]
[1734853601136,2.7106,184.56,184.55,24.5761]
[1734853601641,0.20201,184.66,184.55,24.5761]
[1734853601841,0.97156215,184.65,184.55,24.5761]
[1734853602241,2.7097,184.62,184.6,24.5761]
[1734853603042,2.7098,184.62,184.6,24.5761]
[1734853604139,2.7096,184.64,184.6,24.5761]
[1734853604335,0.20201,184.66,184.6,24.5761]
[1734853604739,2.7096,184.63,184.6,24.5761]
[1734853605042,0.20201,184.66,184.6,24.5761]
[1734853605346,2.7095,184.64,184.6,24.5761]
[1734853605546,2.9,184.64,184.6,21.9696]
[1734853605939,2.7098,184.62,184.6,21.9696]
[1734853606244,3.10201,184.66,184.6,21.9696]
[1734853606450,0.20201,184.66,184.6,21.9696]
[1734853608349,0.20201,184.66,184.61,1.691]
[1734853609151,0.20201,184.66,184.61,3.3243]
[1734853610350,0.20201,184.66,184.63,2.7095]
[1734853611455,0.20201,184.66,184.61,6.034]
[1734853611658,0.20201,184.66,184.62,2.9]
[1734853611858,17.21141351,184.72,184.6,21.9696]
[1734853612354,0.97113053,184.71,184.6,21.9696]
[1734853613159,2.7094,184.65,184.6,21.9696]
[1734853614057,2.7091,184.67,184.6,24.6795]
[1734853615059,2.7091,184.66,184.6,24.6795]
[1734853615252,17.21141351,184.72,184.7,19.2605]
[1734853615654,2.9,184.71,184.7,19.2605]
[1734853616352,5.6084,184.71,184.7,19.2605]
[1734853619956,2.7093,184.65,184.57,1.6458]
[1734853620161,0.2321,184.76,184.57,1.6458]
[1734853620162,2.9,184.67,184.57,1.6458]
[1734853620753,2.7098,184.62,184.57,1.6458]
[1734853621259,2.7098,184.62,184.57,4.3562]
[1734853621962,2.7098,184.62,184.57,1.6458]
[1734853622158,2.9,184.67,184.57,1.6458]
[1734853622356,14.31141351,184.65,184.5,17.31141351]
[1734853622556,14.31141351,184.65,184.5,20.59791351]
[1734853622751,14.31141351,184.65,184.5,3.2865]
[1734853622959,3.0,184.64,184.54,2.7109]
[1734853623158,3.2633,184.66,184.52,3.0]
[1734853623461,2.7097,184.63,184.53,14.31141351]
[1734853624056,2.7097,184.63,184.56,2.7105]
[1734853624262,2.7097,184.63,184.53,14.31141351]
[1734853624564,3.0,184.66,184.58,2.7101]
[1734853624756,3.0,184.66,184.56,17.31141351]
[1734853625157,2.7094,184.64,184.56,17.31141351]
[1734853625559,3.0,184.66,184.56,17.31141351]
[1734853626560,2.7096,184.63,184.56,17.31141351]
[1734853626957,3.0,184.62,184.51,1.6356]
[1734853627165,3.0,184.61,184.51,1.6356]
[1734853627466,3.0,184.6,184.51,1.6356]
[1734853627663,2.7107,184.55,184.51,1.6356]
[1734853627869,3.0,184.58,184.5,3.2865]
[1734853628064,1.6355,184.64,184.45,60.43211441]
[1734853628065,3.0,184.57,184.45,1.6653]
[1734853628369,3.0,184.56,184.45,1.6653]
[1734853628863,2.7111,184.53,184.45,1.6653]
[1734853629068,3.0,184.52,184.43,3.2863]
[1734853629269,3.0,184.51,184.43,3.2863]
[1734853629465,3.0,184.5,184.43,3.2863]
[1734853629666,5.7116,184.49,184.43,3.2863]
[1734853630567,3.0,184.49,184.43,3.2863]
[1734853630764,3.0,184.49,184.4,1.6653]
[1734853630973,3.0,184.49,184.37,3.3165]
[1734853631172,14.31141351,184.47,184.37,3.3165]
[1734853631670,2.7129,184.41,184.37,3.3165]
[1734853631865,3.0,184.4,184.37,3.3165]
[1734853632068,2.7116,184.49,184.37,3.3165]
[1734853632366,3.9723064,184.48,184.37,3.3165]
[1734853632563,3.0,184.47,184.37,3.3165]
[1734853632769,2.7124,184.44,184.37,3.3165]
[1734853632970,3.0,184.48,184.37,6.3165]
[1734853633269,3.0,184.48,184.38,14.31141351]
[1734853634573,3.0,184.48,184.41,2.7127]
[1734853635472,5.7118,184.48,184.41,2.7127]
[1734853636574,3.0,184.48,184.41,2.7127]
[1734853636770,3.0,184.48,184.32,15.96371351]
[1734853637074,14.31141351,184.47,184.33,1.6391]
[1734853637276,2.7131,184.39,184.33,1.6391]
[1734853637467,3.0,184.4,184.33,1.6391]
[1734853638575,3.0,184.4,184.34,2.7138]
[1734853638877,3.0,184.5,184.38,14.31141351]
[1734853639077,3.0,184.5,184.39,4.7355]
[1734853639475,3.0,184.51,184.41,14.31141351]
[1734853639674,3.0,184.51,184.42,1.6687]
[1734853640481,5.7114,184.51,184.44,2.7124]
[1734853641569,2.7116,184.49,184.43,2.7125]
[1734853643273,5.7113,184.51,184.42,24.7924768]
[1734853643472,24.7735768,184.58,184.43,3.0]
[1734853643671,4.6498,184.58,184.43,3.0]
[1734853643879,2.7109,184.54,184.48,2.7117]
[1734853644080,1.6498,184.58,184.45,23.1237768]
[1734853644281,3.0,184.57,184.45,23.1237768]
[1734853644582,2.7109,184.55,184.45,23.1237768]
[1734853645179,3.0,184.56,184.45,23.1237768]
[1734853645378,2.7109,184.54,184.48,2.7118]
[1734853646580,2.7112,184.52,184.43,3.0]
[1734853646784,3.0,184.56,184.43,3.0]
[1734853647186,2.7114,184.51,184.45,2.7121]
[1734853647679,2.7114,184.51,184.43,3.0]
[1734853647980,2.7106,184.56,184.51,2.7113]
[1734853648184,3.0,184.57,184.5,40.0]
[1734853648586,2.7108,184.55,184.5,40.0]
[1734853648882,3.0,184.57,184.5,40.0]
[1734853649088,2.7106,184.56,184.5,42.7114]
[1734853650081,3.0,184.57,184.5,42.7114]
[1734853650479,1.614,184.62,184.5,40.0]
[1734853650789,3.0,184.61,184.51,4.594]
[1734853651285,2.7098,184.62,184.55,2.7107]
[1734853651474,3.08,184.62,184.51,4.594]
[1734853652087,2.7103,184.58,184.51,1.594]
[1734853652288,3.08,184.57,184.51,1.594]
[1734853652589,3.08,184.56,184.51,1.594]
[1734853653496,3.08,184.56,184.5,40.0]
[1734853653687,2.7113,184.51,184.5,40.0]
[1734853655290,3.08,184.52,184.5,40.0]
[1734853655786,3.08,184.55,184.5,40.0]
[1734853656488,3.08,184.55,184.49,2.7115]
[1734853657187,23.1237768,184.6,184.45,23.1237768]
[1734853657382,3.08,184.59,184.5,2.7114]
[1734853657578,23.1237768,184.63,184.46,3.08]
[1734853657887,3.08,184.62,184.52,2.7111]
[1734853658888,3.08,184.61,184.52,2.7111]
[1734853659189,23.1237768,184.6,184.48,3.3724]
[1734853659492,2.7107,184.56,184.48,3.3724]
[1734853659782,5.7907,184.56,184.49,2.7116]
[1734853659989,5.7907,184.56,184.48,3.3724]
[1734853659990,3.08,184.56,184.48,3.3724]
[1734853660488,2.7109,184.54,184.48,6.084]
[1734853661089,5.7906,184.56,184.51,2.7113]
[1734853661581,2.7104,184.58,184.52,2.7111]
[1734853662582,2.7102,184.59,184.53,2.711]
[1734853662779,3.08,184.6,184.53,2.711]
[1734853663088,14.21768992,184.63,184.54,2.7107]
[1734853663284,72.78421407,184.64,184.5,3.08]
[1734853663487,3.08,184.63,184.5,17.29768992]
[1734853663690,2.7097,184.62,184.56,2.7105]
[1734853663892,3.08,184.63,184.5,17.29768992]
[1734853664691,3.08,184.62,184.5,17.29768992]
[1734853666385,75.86421407,184.64,184.58,2.7103]
[1734853667593,75.86421407,184.64,184.56,2.7105]
[1734853668595,15.18922758,184.63,184.49,4.9761]
[1734853668786,0.97156866,184.62,184.49,4.9761]
[1734853669093,2.7103,184.59,184.53,2.711]
[1734853669995,2.7103,184.59,184.49,4.9761]
[1734853669996,5.79,184.6,184.54,2.7109]
[1734853670187,5.79,184.6,184.51,3.08]
[1734853670188,3.08,184.6,184.51,3.08]
[1734853671092,2.7102,184.59,184.54,2.7108]
[1734853671793,2.7103,184.58,184.53,2.711]
[1734853671992,3.08,184.6,184.51,3.08]
[1734853672292,3.08,184.6,184.49,4.9761]
[1734853672892,2.7101,184.6,184.52,2.7112]
[1734853673093,3.08,184.59,184.52,2.7112]
[1734853673589,2.7104,184.58,184.52,2.7112]
[1734853674190,9.04802757,184.57,184.48,3.08]
[1734853674589,9.04802757,184.56,184.48,3.08]
[1734853674890,9.04802757,184.55,184.52,2.7111]
[1734853675191,9.04802757,184.54,184.52,2.7111]
[1734853675395,15.89418358,184.53,184.48,3.08]
[1734853675589,15.89418358,184.52,184.48,3.08]
[1734853675786,6.84615601,184.51,184.48,3.08]
[1734853675992,15.89418358,184.5,184.49,2.7116]
[1734853676394,1.6727,184.65,184.58,2.7103]
[1734853676592,1.6727,184.65,184.54,3.08]
[1734853677193,8.14450365,184.64,184.54,0.48977778]
[1734853677393,8.14450365,184.63,184.54,0.48977778]
[1734853677595,10.85420365,184.62,184.57,2.7103]
[1734853677794,8.14450365,184.61,184.54,0.48977778]
[1734853677995,8.14450365,184.6,184.54,0.48977778]
[1734853678194,8.14450365,184.59,184.54,0.48977778]
[1734853678495,2.7097,184.62,184.54,0.48977778]
[1734853678695,2.7097,184.62,184.57,2.7103]
[1734853679696,2.7102,184.59,184.55,2.7107]
[1734853679992,3.08,184.62,184.52,3.2708]
[1734853680189,2.7103,184.59,184.54,2.7108]
[1734853680596,3.08,184.62,184.52,3.2708]
[1734853681596,2.71,184.61,184.56,2.7105]
[1734853684396,2.7101,184.6,184.55,2.7107]
[1734853684696,3.08,184.62,184.52,3.2708]
[1734853684897,2.7103,184.58,184.54,2.7108]
[1734853686302,3.08,184.62,184.52,2.7111]
[1734853686502,3.08,184.62,184.49,3.04]
[1734853687002,14.21768992,184.6,184.47,1.7326]
[1734853687199,14.21768992,184.6,184.45,1.5915]
[1734853687200,3.3302,184.59,184.45,1.5915]
[1734853687504,2.7114,184.51,184.46,2.712]
[1734853689006,3.04,184.54,184.45,1.5915]
[1734853689202,2.7112,184.52,184.47,2.7119]
[1734853689904,1.7174,184.58,184.48,14.21768992]
[1734853690099,32.90062982,184.63,184.51,14.21768992]
[1734853690305,35.61022982,184.63,184.58,2.7102]
[1734853690506,5.7496,184.63,184.58,2.7102]
[1734853691708,3.04,184.63,184.53,1.6696]
[1734853692206,3.04,184.68,184.54,14.21768992]
[1734853692507,2.709,184.67,184.54,14.21768992]
[1734853693408,2.709,184.67,184.61,2.7098]
[1734853695106,2.7088,184.68,184.62,2.7096]
[1734853697814,2.7088,184.68,184.58,3.04]
[1734853698013,2.7088,184.68,184.63,2.7096]
[1734853700020,2.7093,184.65,184.59,2.7101]
[1734853701113,3.04,184.65,184.59,2.7101]
[1734853701322,3.04,184.65,184.56,3.04]
[1734853701514,3.04,184.65,184.53,4.7096]
[1734853701819,2.7097,184.62,184.56,2.7105]
[1734853702518,2.7095,184.64,184.58,2.7102]
[1734853702712,4.9373,184.71,184.58,3.04]
[1734853702915,4.01115721,184.7,184.58,3.04]
[1734853703216,3.04,184.7,184.58,3.04]
[1734853704011,2.7087,184.69,184.58,3.04]
[1734853704722,2.7087,184.69,184.63,2.7095]
[1734853705020,2.7089,184.68,184.63,2.7095]
[1734853705318,3.04,184.7,184.58,3.04]
[1734853705513,2.7088,184.69,184.58,3.04]
[1734853705713,14.40265131,184.76,184.58,3.04]
[1734853705714,89.58188951,184.8,184.67,14.21768992]
[1734853705915,89.58188951,184.8,184.7,14.21768992]
[1734853706122,7.46515745,184.76,184.75,2.7078]
[1734853706516,21.13512982,184.77,184.75,2.7078]
[1734853706920,0.23962,184.78,184.75,2.7078]
[1734853708516,0.23962,184.78,184.68,19.12458992]
[1734853708821,0.23962,184.78,184.69,3.04]
[1734853709825,2.7075,184.77,184.7,2.7084]
[1734853710318,2.7075,184.77,184.69,3.04]
[1734853710520,2.7075,184.77,184.71,2.7083]
[1734853711624,2.7075,184.77,184.72,3.0]
[1734853712617,2.7075,184.77,184.72,5.7082]
[1734853713628,2.7079,184.75,184.7,3.0]
[1734853714522,2.7076,184.77,184.71,2.7084]
[1734853714719,0.23962,184.78,184.68,19.12458992]
[1734853714919,0.23962,184.78,184.7,3.0]
[1734853715821,3.0,184.8,184.7,3.0]
[1734853716219,2.7074,184.78,184.72,2.7082]
[1734853716427,3.0,184.8,184.68,19.12458992]
[1734853716624,3.0,184.8,184.69,3.0]
[1734853718331,2.7072,184.79,184.73,2.7081]
[1734853718519,2.7072,184.79,184.73,3.0]
[1734853719532,2.7072,184.79,184.74,2.7079]
[1734853720031,1.6901,184.82,184.74,2.7079]
[1734853720230,2.7071,184.8,184.74,2.7079]
[1734853722134,2.7069,184.82,184.76,2.7075]
[1734853722440,1.7181,184.83,184.73,3.0]
[1734853722634,1.6052,184.87,184.73,3.0]
[1734853722828,2.7066,184.84,184.73,3.0]
[1734853723833,2.7066,184.84,184.78,2.7072]
[1734853724127,2.7066,184.84,184.77,3.0]
[1734853724534,2.7066,184.84,184.79,2.7071]
[1734853725736,3.0,184.87,184.78,2.7074]
[1734853725935,2.7067,184.83,184.78,2.7074]
[1734853727938,3.0,184.87,184.77,3.0]
[1734853728135,2.7065,184.84,184.77,3.0]
[1734853729441,2.7065,184.84,184.79,2.7072]
[1734853732332,2.7064,184.85,184.81,2.7069]
[1734853732538,3.0,184.87,184.77,3.0]
[1734853733037,14.21768992,184.89,184.77,3.0]
[1734853733234,2.7064,184.85,184.8,2.7069]
[1734853735639,17.21768992,184.89,184.77,3.0]
[1734853735838,0.97026609,184.88,184.77,3.0]
[1734853736138,3.0,184.89,184.78,15.81088992]
[1734853736437,3.0,184.89,184.78,1.5932]
[1734853736742,0.97016634,184.88,184.78,1.5932]
[1734853737042,2.7065,184.85,184.79,2.7072]
[1734853737245,2.7065,184.85,184.78,1.5932]
[1734853738242,2.7062,184.87,184.83,2.7067]
[1734853738435,3.0,184.89,184.83,2.7067]
[1734853738632,2.7062,184.87,184.83,2.7067]
[1734853738939,2.7062,184.87,184.82,2.7069]
[1734853739539,2.7065,184.86,184.8,2.7071]
[1734853740041,2.7063,184.87,184.8,2.7071]
[1734853740236,3.0,184.89,184.8,2.7071]
[1734853740437,0.97020481,184.88,184.8,2.7071]
[1734853740737,14.21768992,184.87,184.72,14.21768992]
[1734853740941,0.97020481,184.86,184.72,14.21768992]
[1734853741136,0.97020481,184.86,184.69,4.8385]
[1734853741137,2.7075,184.79,184.73,2.7082]
[1734853741436,2.94,184.8,184.73,2.7082]
[1734853742537,2.94,184.8,184.71,2.7085]
[1734853742735,2.94,184.8,184.69,1.6043]
[1734853742933,2.7081,184.75,184.69,1.6043]
[1734853743138,2.7081,184.75,184.69,4.313]
[1734853743437,2.7081,184.75,184.69,2.7087]
[1734853744938,2.7081,184.74,184.68,2.709]
[1734853745137,17.15768992,184.76,184.59,77.27415508]
[1734853745345,2.7093,184.66,184.6,2.7102]
[1734853745841,2.7084,184.73,184.64,2.7096]
[1734853746037,2.94,184.72,184.62,2.94]
[1734853746238,2.94,184.72,184.63,14.21768992]
[1734853747144,2.94,184.72,184.62,2.94]
[1734853747540,2.7087,184.71,184.64,2.7095]
[1734853748749,2.7089,184.69,184.64,2.7095]
[1734853749047,2.7089,184.69,184.62,2.94]
[1734853749348,2.7089,184.69,184.63,2.7098]
[1734853749543,2.94,184.72,184.59,16.99947223]
[1734853749544,2.94,184.72,184.59,19.93947223]
[1734853749749,0.9710619,184.71,184.59,19.70967223]
[1734853749950,2.94,184.72,184.59,1.6983]
[1734853750149,2.94,184.72,184.56,14.21768992]
[1734853750150,2.7099,184.62,184.56,14.21768992]
[1734853750347,2.94,184.64,184.54,1.6884]
[1734853750549,2.94,184.64,184.53,15.90798992]
[1734853750753,2.7103,184.6,184.53,1.6903]
[1734853750945,2.94,184.6,184.53,1.6903]
[1734853751147,2.7105,184.58,184.53,1.6903]
[1734853751641,2.7105,184.58,184.5,20.32158992]
[1734853751844,2.7108,184.56,184.5,2.7115]
[1734853752151,2.94,184.56,184.5,2.7115]
[1734853752344,2.94,184.56,184.51,2.7115]
[1734853753043,2.94,184.61,184.5,17.15768992]
[1734853754046,5.6501,184.61,184.55,2.7109]
[1734853754947,2.7098,184.63,184.57,2.7106]
[1734853755153,2.7098,184.63,184.54,2.94]
[1734853755348,2.94,184.64,184.54,2.94]
[1734853755553,2.94,184.64,184.54,4.6382]
[1734853755853,2.94,184.64,184.5,14.21768992]
[1734853756046,2.94,184.64,184.48,1.6004]
[1734853756245,2.7107,184.57,184.5,2.7116]
[1734853756848,2.7107,184.57,184.51,2.7115]
[1734853757153,2.7107,184.57,184.48,1.6004]
[1734853757154,5.6505,184.58,184.48,1.6004]
[1734853757356,5.6505,184.58,184.51,2.7115]
[1734853758155,5.6505,184.58,184.52,2.7114]
[1734853758358,1.6535,184.67,184.51,17.15768992]
[1734853758554,2.94,184.66,184.52,1.5996]
[1734853759057,2.94,184.66,184.53,1.7059]
[1734853759252,1.6535,184.67,184.53,1.7059]
[1734853759450,2.94,184.66,184.54,14.21768992]
[1734853759657,2.94,184.66,184.55,2.94]
[1734853760161,2.7095,184.65,184.6,2.7102]
[1734853761658,2.7098,184.63,184.56,1.6642]
[1734853762358,2.7098,184.63,184.57,2.7105]
[1734853763059,2.7098,184.63,184.58,2.7105]
[1734853763461,2.7098,184.63,184.57,2.7106]
[1734853763661,2.7101,184.61,184.53,4.6459]
[1734853764160,2.94,184.6,184.53,1.7059]
[1734853764360,5.6502,184.6,184.55,2.7109]
[1734853764858,5.6502,184.6,184.54,2.711]
[1734853765261,5.6502,184.6,184.5,2.94]
[1734853765555,2.7105,184.58,184.48,14.21768992]
[1734853765760,2.7105,184.58,184.49,2.94]
[1734853765962,2.94,184.6,184.49,2.94]
[1734853766152,2.94,184.6,184.5,1.5711]
[1734853766752,2.711,184.55,184.45,14.21768992]
[1734853766963,2.94,184.55,184.44,3.1545]
[1734853767260,2.7115,184.51,184.44,1.5711]
[1734853767462,2.94,184.5,184.44,1.5711]
[1734853767662,2.94,184.49,184.38,15.80108992]
[1734853767964,2.7122,184.47,184.39,1.5711]
[1734853768166,2.94,184.49,184.37,1.7372]
[1734853768462,3.3924,184.48,184.38,2.7134]
[1734853769470,2.7123,184.46,184.38,2.7134]
[1734853769663,2.94,184.45,184.39,2.7133]
[1734853771766,3.3924,184.48,184.34,4.5111]
[1734853772066,2.92,184.47,184.35,14.21768992]
[1734853773468,2.92,184.47,184.35,17.13768992]
[1734853774572,2.92,184.47,184.42,2.7128]
[1734853775971,2.7124,184.46,184.39,2.7132]
[1734853776167,2.7124,184.46,184.34,1.5711]
[1734853776168,2.92,184.47,184.34,1.5711]
[1734853776374,2.7127,184.43,184.36,2.7137]
[1734853776573,2.92,184.42,184.36,2.7137]
[1734853778671,2.92,184.42,184.37,2.7136]
[1734853780275,5.6329,184.42,184.29,17.13768992]
[1734853780978,5.6329,184.42,184.36,2.7137]
[1734853781973,2.92,184.44,184.33,2.92]
[1734853782175,2.92,184.44,184.32,17.13768992]
[1734853782374,5.6326,184.44,184.39,2.7133]
[1734853784072,5.6326,184.44,184.32,14.21768992]
[1734853784274,2.7127,184.43,184.37,2.7135]
[1734853784572,2.92,184.44,184.32,14.21768992]
[1734853784766,2.7129,184.42,184.35,2.7138]
[1734853785074,2.7129,184.42,184.3,2.92]
[1734853785674,2.7129,184.42,184.36,2.7137]
[1734853788075,2.7129,184.42,184.29,17.13768992]
[1734853788278,2.7129,184.42,184.37,2.7136]
[1734853790177,17.13768992,184.44,184.29,14.21768992]
[1734853790380,14.21768992,184.41,184.28,4.9532]
[1734853790581,4.5244,184.4,184.28,4.9532]
[1734853791179,2.7134,184.39,184.31,2.7144]
[1734853791480,2.7134,184.39,184.28,4.9532]
[1734853791871,2.7134,184.39,184.33,2.714]
[1734853792571,2.7134,184.39,184.34,2.7139]
[1734853793382,4.5244,184.4,184.36,2.7136]
[1734853796679,4.5244,184.4,184.29,14.21768992]
[1734853796985,7.2376,184.4,184.35,2.7137]
[1734853800182,4.5244,184.4,184.35,2.7137]
[1734853800385,2.7133,184.39,184.35,2.7137]
[1734853800579,4.5244,184.4,184.33,2.714]
[1734853800880,2.7135,184.38,184.33,2.714]
[1734853801085,14.21768992,184.38,184.29,2.7147]
[1734853801278,14.21768992,184.38,184.28,1.6513]
[1734853802288,14.21768992,184.38,184.23,17.56268992]
[1734853802488,14.21768992,184.38,184.24,1.6135]
[1734853802882,2.7142,184.33,184.28,2.7149]
[1734853803079,2.82,184.32,184.28,2.7149]
[1734853803376,2.82,184.32,184.25,2.7153]
[1734853803580,2.82,184.32,184.24,1.6135]
[1734853803885,2.7145,184.31,184.25,2.7154]
[1734853806791,2.7145,184.31,184.18,2.82]
[1734853806792,2.7146,184.3,184.12,88.54947427]
[1734853806991,14.21768992,184.29,184.14,1.7239]
[1734853807190,2.82,184.28,184.14,1.7239]
[1734853807692,2.7154,184.25,184.19,2.7161]
[1734853807894,2.82,184.24,184.14,1.7239]
[1734853808096,2.82,184.24,184.14,4.5439]
[1734853808288,2.82,184.26,184.18,14.21768992]
[1734853808888,2.82,184.26,184.24,2.7154]
[1734853809291,2.82,184.26,184.18,14.21768992]
[1734853809895,1.7339,184.31,184.14,4.5439]
[1734853810097,2.82,184.3,184.16,14.21768992]
[1734853810396,2.7149,184.28,184.23,2.7156]
[1734853811695,2.7155,184.25,184.14,4.5439]
[1734853811995,2.82,184.24,184.14,4.5439]
[1734853812187,2.82,184.24,184.19,2.7161]
[1734853812697,2.82,184.24,184.14,1.7239]
[1734853813397,2.82,184.24,184.2,2.7161]
[1734853813798,2.82,184.24,184.14,1.7239]
[1734853814092,5.5356,184.24,184.14,1.7239]
[1734853814294,2.82,184.24,184.14,1.7239]
[1734853814496,2.7161,184.21,184.16,2.7167]
[1734853814697,2.82,184.2,184.16,2.7167]
[1734853815099,2.7163,184.19,184.15,2.7168]
[1734853815394,2.82,184.2,184.07,14.21768992]